bitfinex/quotes_SOLUSD_20250228
["timestamp","ask_amount","ask_price","bid_price","bid_amount"]
[1740737295967,20.0,132.13,132.12,0.063]
[1740737296473,20.14216157,132.13,132.12,0.063]
[1740737296664,28.20216157,132.13,132.12,0.0001]
[1740737297357,29.71576157,132.13,132.12,0.0001]
[1740737297565,31.71576157,132.13,132.12,0.0001]
[1740737297771,33.71576157,132.13,132.12,0.0001]
[1740737298074,0.14216157,132.1,132.03,81.663]
[1740737298248,0.14216157,132.07,132.03,81.663]
[1740737299353,1.5144,132.06,132.03,81.663]
[1740737299562,5.3005,132.06,132.03,81.663]
[1740737299759,1.5144,132.06,132.03,81.663]
[1740737301669,1.5143,132.07,132.03,81.663]
[1740737301873,9.5742,132.08,132.03,136.36524459]
[1740737302257,1.5142,132.08,132.04,18.64964886]
[1740737302458,21.5141,132.09,132.04,18.64964886]
[1740737302651,1.5137,132.12,132.04,25.08624886]
[1740737302969,1.5137,132.12,132.04,242.98849345]
[1740737303170,129.0636,132.13,132.04,242.98849345]
[1740737303390,129.0636,132.13,132.06,18.64964886]
[1740737303667,0.03,132.13,132.08,18.64964886]
[1740737303846,0.03,132.13,132.08,236.55189345]
[1740737305859,0.03,132.13,132.08,244.12289345]
[1740737309188,0.03,132.13,132.08,236.55189345]
[1740737310776,0.03,132.13,132.08,244.12299345]
[1740737311354,0.03,132.13,132.08,236.55189345]
[1740737311786,0.03,132.13,132.08,217.90224459]
[1740737312558,5.3277,132.13,132.08,217.90224459]
[1740737313185,0.14216157,132.12,132.08,81.6]
[1740737313676,20.0,132.1,132.08,81.6]
[1740737313981,20.0,132.1,132.08,0.063]
[1740737314684,21.5141,132.09,132.08,0.063]
[1740737315760,0.14216157,132.08,132.04,81.6]
[1740737316159,0.14216157,132.05,132.02,0.063]
[1740737317662,20.0,132.04,132.02,0.063]
[1740737318883,1.5148,132.03,132.02,0.063]
[1740737319179,21.5148,132.03,132.02,0.063]
[1740737320492,1.5146,132.04,132.02,0.063]
[1740737320697,28.20216157,132.03,132.02,0.0001]
[1740737321164,30.20216157,132.03,132.02,0.0001]
[1740737321578,30.20216157,132.03,131.99,0.063]
[1740737321579,8.0924,132.0,131.91,1.5377]
[1740737321757,0.14216157,131.96,131.91,1.5377]
[1740737321961,20.0,131.95,131.91,1.5377]
[1740737322168,0.14216157,131.92,131.83,136.5]
[1740737322365,1.5161,131.91,131.8,3.13041932]
[1740737322589,1.5161,131.91,131.8,221.23041932]
[1740737322797,1.5161,131.91,131.8,219.6377]
[1740737323185,1.5161,131.91,131.79,11.61177732]
[1740737323186,20.14216157,131.88,131.79,11.61177732]
[1740737323416,0.14216157,131.86,131.79,229.71177732]
[1740737323684,8.06,131.87,131.79,229.71177732]
[1740737323989,0.14216157,131.9,131.8,18.64964886]
[1740737324183,20.0,131.88,131.8,136.5]
[1740737324480,1.5166,131.87,131.8,136.5]
[1740737324679,20.14216157,131.86,131.8,136.5]
[1740737325689,0.14216157,131.89,131.81,18.64964886]
[1740737325862,0.14216157,131.89,131.81,236.74964886]
[1740737326289,1.5163,131.9,131.81,236.74964886]
[1740737326590,1.5163,131.9,131.81,244.80964886]
[1740737327193,20.0,131.88,131.81,81.6]
[1740737327369,20.0,131.86,131.81,81.6]
[1740737327695,1.65896157,131.85,131.78,81.663]
[1740737329501,9.5767,131.86,131.79,18.64964886]
[1740737329673,9.5767,131.86,131.78,218.163]
[1740737329868,0.14216157,131.85,131.78,218.163]
[1740737331297,0.14216157,131.83,131.78,81.663]
[1740737333071,1.5169,131.84,131.78,81.663]
[1740737333270,0.14216157,131.83,131.78,81.663]
[1740737333992,1.5169,131.84,131.78,81.663]
[1740737335883,1.5168,131.86,131.79,18.64964886]
[1740737336082,1.5165,131.88,131.79,236.74964886]
[1740737337812,1.5165,131.88,131.81,18.64964886]
[1740737337982,129.2764,131.89,131.81,20.22424886]
[1740737338186,0.14216157,131.88,131.81,1.5746]
[1740737339116,0.14216157,131.88,131.79,218.1]
[1740737339410,8.34216157,131.88,131.79,218.1]
[1740737339803,5.3082,131.87,131.79,218.1]
[1740737341486,0.14216157,131.86,131.79,218.1]
[1740737342100,1.5168,131.85,131.79,218.1]
[1740737342715,1.5167,131.87,131.8,18.64964886]
[1740737343028,1.5167,131.87,131.8,236.74964886]
[1740737343317,1.5167,131.87,131.8,218.1]
[1740737343509,1.5167,131.87,131.81,18.64964886]
[1740737344225,5.3078,131.88,131.81,18.64964886]
[1740737344430,1.5165,131.88,131.81,244.33614886]
[1740737344722,129.2764,131.89,131.81,244.33614886]
[1740737344891,129.2764,131.89,131.82,8.18]
[1740737345086,133.0674,131.89,131.82,8.18]
[1740737345321,129.2764,131.89,131.82,8.18]
[1740737345707,129.2764,131.89,131.83,18.64964886]
[1740737347424,133.0674,131.89,131.83,218.1]
[1740737347721,129.2764,131.89,131.83,218.1]
[1740737347898,129.2764,131.89,131.84,18.64964886]
[1740737348097,129.2764,131.89,131.84,236.74964886]
[1740737348600,0.03,131.9,131.84,236.74964886]
[1740737349793,0.03,131.9,131.84,218.1]
[1740737350927,1.5463,131.9,131.84,218.1]
[1740737351701,0.03,131.9,131.85,18.64964886]
[1740737353706,0.03,131.9,131.85,26.23394886]
[1740737356825,0.03,131.9,131.85,244.33394886]
[1740737360233,0.03,131.9,131.85,236.74964886]
[1740737362937,0.03,131.9,131.85,236.81264886]
[1740737364130,25.337,131.9,131.85,218.163]
[1740737367418,5.337,131.9,131.85,218.163]
[1740737367836,0.14216157,131.89,131.85,218.163]
[1740737368225,0.02521163,131.87,131.85,218.163]
[1740737371627,0.02521163,131.87,131.85,81.663]
[1740737374637,1.33163201,131.88,131.85,81.663]
[1740737375336,1.33163201,131.88,131.85,218.163]
[1740737375644,1.5463,131.9,131.86,18.64964886]
[1740737376143,1.5463,131.9,131.86,81.6]
[1740737376324,0.14216157,131.89,131.86,81.6]
[1740737376760,1.5165,131.88,131.86,81.6]
[1740737378642,5.44956157,131.89,131.86,81.6]
[1740737380549,5.44956157,131.89,131.86,218.1]
[1740737383736,20.14216157,131.87,131.86,41.063]
[1740737384057,26.15916157,131.87,131.85,0.063]
[1740737384954,1.5167,131.86,131.85,0.063]
[1740737388486,1.65886157,131.86,131.85,0.0001]
[1740737388768,20.0,131.83,131.78,39.8614]
[1740737388958,1.5173,131.81,131.78,39.8614]
[1740737389263,0.14216157,131.8,131.78,0.063]
[1740737389565,20.0,131.79,131.78,0.063]
[1740737390066,20.0,131.79,131.72,177.8765]
[1740737390934,6.1663,131.81,131.72,177.8765]
[1740737391462,8.08,131.82,131.73,43.00335499]
[1740737391636,134.2143,131.84,131.75,41.40964886]
[1740737392153,0.7585,131.83,131.75,41.40964886]
[1740737392368,0.7585,131.83,131.75,43.00263589]
[1740737392784,0.7583,131.86,131.78,41.40964886]
[1740737393080,1.8959,131.87,131.78,226.88912622]
[1740737393242,0.7582,131.88,131.78,225.29644886]
[1740737393438,0.7582,131.88,131.8,41.40964886]
[1740737393638,0.7582,131.88,131.8,43.00209202]
[1740737393835,0.7582,131.88,131.8,219.30049202]
[1740737394039,0.7582,131.88,131.8,217.70804886]
[1740737394774,0.7582,131.89,131.8,217.70804886]
[1740737395476,0.7582,131.89,131.8,225.29504886]
[1740737398065,0.7582,131.89,131.8,202.53504886]
[1740737398262,0.7582,131.89,131.8,194.94804886]
[1740737398573,20.0,131.87,131.8,176.2984]
[1740737399379,2.6537,131.89,131.8,176.2984]
[1740737399680,6.4447,131.89,131.8,176.2984]
[1740737399854,2.6537,131.89,131.81,18.64964886]
[1740737401983,22.6541,131.87,131.81,176.2984]
[1740737402172,0.14216157,131.86,131.81,176.2984]
[1740737402380,20.14216157,131.86,131.81,39.7984]
[1740737403085,0.14216157,131.82,131.77,11.1038]
[1740737403389,20.0,131.8,131.74,11.1038]
[1740737403690,28.08,131.8,131.74,147.6038]
[1740737404161,1.8965,131.82,131.75,18.64964886]
[1740737404978,0.7586,131.81,131.75,166.25344886]
[1740737405275,0.7585,131.83,131.76,6.6346]
[1740737406782,2.6548,131.83,131.76,6.6346]
[1740737408187,2.6548,131.83,131.75,166.25344886]
[1740737409595,2.6548,131.83,131.75,147.6038]
[1740737410694,2.6548,131.83,131.76,18.64964886]
[1740737411396,2.6548,131.83,131.76,166.25344886]
[1740737412362,2.6548,131.83,131.76,147.6038]
[1740737413270,2.6548,131.83,131.77,18.64964886]
[1740737413577,2.6548,131.83,131.77,166.25344886]
[1740737414490,2.6548,131.83,131.77,147.6038]
[1740737414875,0.7585,131.83,131.78,18.64964886]
[1740737415887,0.7584,131.85,131.78,189.01344886]
[1740737416090,1.9258,131.87,131.79,1.5879]
[1740737416293,2.6542,131.86,131.79,149.1917]
[1740737416488,20.0,131.84,131.79,147.6038]
[1740737416788,2.6542,131.86,131.8,18.64964886]
[1740737416960,0.7583,131.86,131.8,18.64964886]
[1740737417166,0.7583,131.86,131.79,147.6038]
[1740737417387,22.6542,131.86,131.79,147.6038]
[1740737417586,0.03,131.87,131.8,18.64964886]
[1740737417587,0.7883,131.87,131.8,18.64964886]
[1740737417768,0.7883,131.87,131.8,166.25344886]
[1740737417981,0.7883,131.87,131.8,172.38634886]
[1740737418295,0.03,131.87,131.8,172.38634886]
[1740737418470,0.03,131.87,131.8,166.25344886]
[1740737419665,0.03,131.87,131.82,43.40964886]
[1740737419884,0.03,131.87,131.84,18.64964886]
[1740737420099,0.03,131.87,131.84,166.25344886]
[1740737421493,0.03,131.87,131.84,147.6038]
[1740737422269,0.17216157,131.87,131.84,11.1038]
[1740737422563,6.71116157,131.87,131.84,11.1038]
[1740737422894,6.569,131.87,131.84,11.1038]
[1740737423781,20.0,131.84,131.81,147.6038]
[1740737424091,20.0,131.84,131.81,11.1038]
[1740737424389,0.7585,131.83,131.81,11.1038]
[1740737428091,0.14216157,131.82,131.75,11.1668]
[1740737428295,0.7586,131.81,131.75,147.6668]
[1740737430301,1.8963,131.83,131.75,147.6668]
[1740737431498,0.14216157,131.82,131.75,147.6668]
[1740737432001,20.0,131.81,131.75,147.6668]
[1740737432394,8.9633,131.8,131.75,147.6668]
[1740737432705,8.9633,131.8,131.75,11.1668]
[1740737434883,17.0433,131.8,131.75,11.1668]
[1740737435385,20.0,131.77,131.75,0.063]
[1740737436693,0.7589,131.76,131.75,0.063]
[1740737439118,0.7589,131.76,131.75,11.1668]
[1740737441422,0.7589,131.76,131.75,147.6668]
[1740737441995,0.7587,131.79,131.75,147.6668]
[1740737442615,1.8968,131.81,131.75,147.6668]
[1740737442820,2.6554,131.81,131.75,147.6668]
[1740737443627,20.0,131.78,131.75,11.1668]
[1740737444925,0.7588,131.77,131.75,11.1668]
[1740737445298,6.34676157,131.76,131.72,0.0001]
[1740737445623,6.2046,131.76,131.72,0.0001]
[1740737446297,10.736,131.77,131.72,0.0001]
[1740737447727,10.736,131.77,131.75,0.063]
[1740737447898,8.8388,131.77,131.75,0.0631]
[1740737453211,0.7588,131.77,131.75,0.0631]
[1740737454231,2.6559,131.78,131.75,0.0631]
[1740737455736,0.7588,131.78,131.75,0.0631]
[1740737456115,0.7588,131.78,131.75,136.563]
[1740737456320,0.7587,131.8,131.75,136.563]
[1740737456505,0.7587,131.8,131.75,218.163]
[1740737457427,0.03,131.81,131.76,18.64964886]
[1740737457627,0.03,131.81,131.76,236.74964886]
[1740737461333,0.03,131.81,131.79,1.6146]
[1740737461527,0.03,131.81,131.79,219.7146]
[1740737462740,0.03,131.81,131.8,18.64964886]
[1740737464248,0.03,131.81,131.79,219.7146]
[1740737465537,0.03,131.81,131.8,18.64964886]
[1740737466129,0.03,131.81,131.8,245.92939596]
[1740737466446,0.03,131.81,131.8,252.39684886]
[1740737467224,0.03,131.87,131.82,18.64964886]
[1740737467428,0.03,131.87,131.82,236.74964886]
[1740737467636,0.03,131.87,131.84,18.64964886]
[1740737467818,0.03,131.87,131.84,236.74964886]
[1740737468625,0.03,131.87,131.85,1.59200991]
[1740737468828,0.03,131.87,131.86,18.64964886]
[1740737469037,0.03,131.87,131.86,20.24130383]
[1740737469219,0.03,131.87,131.86,236.74964886]
[1740737469819,0.03,131.87,131.86,244.33344886]
[1740737470260,0.03,131.87,131.86,236.74964886]
[1740737470842,0.03,131.87,131.86,244.33344886]
[1740737471528,0.03,131.87,131.86,246.47561043]
[1740737471936,0.03,131.87,131.86,244.33344886]
[1740737472138,0.03,131.87,131.86,236.74964886]
[1740737472553,0.03,131.87,131.86,244.33344886]
[1740737474753,0.03,131.87,131.86,244.47561043]
[1740737474926,0.03,131.87,131.86,246.33344886]
[1740737475128,0.03,131.87,131.86,246.47561043]
[1740737475431,0.03,131.87,131.86,244.33344886]
[1740737477023,0.03,131.87,131.86,246.33344886]
[1740737477450,0.03,131.87,131.86,246.47561043]
[1740737477658,0.03,131.9,131.86,248.47561043]
[1740737477845,0.03,131.9,131.88,18.64964886]
[1740737478052,0.03,131.9,131.89,20.17774886]
[1740737478257,0.03,131.9,131.89,238.27774886]
[1740737479138,0.03,131.9,131.89,245.85974886]
[1740737480166,0.03,131.9,131.89,277.23771043]
[1740737480967,0.03,131.92,131.9,100.21964886]
[1740737481130,0.03,131.92,131.91,26.23054886]
[1740737481558,0.03,131.92,131.91,18.64964886]
[1740737483949,0.03,131.92,131.91,26.23054886]
[1740737484144,0.03,131.92,131.91,18.64964886]
[1740737484545,0.03,131.92,131.91,236.71964886]
[1740737487053,0.03,131.92,131.91,244.30054886]
[1740737487944,0.03,131.92,131.91,236.71964886]
[1740737488872,0.03,131.92,131.91,218.07]
[1740737492269,0.03,131.92,131.91,81.57]
[1740737492476,0.03,131.92,131.91,49.242]
[1740737492672,0.03,131.92,131.91,43.854]
[1740737492972,0.03,131.92,131.86,180.354]
[1740737493472,0.03,131.92,131.86,180.417]
[1740737494577,20.0,131.91,131.86,180.417]
[1740737495258,0.14216157,131.91,131.86,180.417]
[1740737495453,8.09,131.92,131.86,180.417]
[1740737496059,10.743,131.92,131.86,180.417]
[1740737497079,2.683,131.92,131.86,180.417]
[1740737497859,1.925,131.92,131.86,180.417]
[1740737499270,0.03,131.92,131.86,180.417]
[1740737499470,0.03,131.92,131.87,18.64964886]
[1740737499651,0.03,131.92,131.87,199.00364886]
[1740737500368,0.03,131.92,131.87,180.354]
[1740737503048,0.03,131.92,131.88,18.64964886]
[1740737504680,0.03,131.92,131.88,208.17792139]
[1740737504878,0.03,131.92,131.88,206.58624886]
[1740737505762,0.03,131.92,131.89,1.59134657]
[1740737505981,0.03,131.92,131.89,180.354]
[1740737506281,0.03,131.92,131.9,18.64964886]
[1740737506467,0.03,131.92,131.9,206.58514886]
[1740737508893,0.03,131.92,131.9,199.00364886]
[1740737511983,0.03,131.92,131.9,206.58504886]
[1740737513378,0.03,131.92,131.91,22.82]
[1740737514096,0.03,131.92,131.91,50.64177514]
[1740737516096,0.03,131.95,131.93,22.82]
[1740737516291,0.03,131.95,131.94,51.10031754]
[1740737517196,0.03,131.95,131.94,58.67951754]
[1740737517999,0.03,132.0,131.96,18.64964886]
[1740737518198,0.03,132.0,131.96,200.59409334]
[1740737518404,0.03,132.0,131.96,199.00364886]
[1740737518699,0.03,132.0,131.96,201.00364886]
[1740737519295,0.03,132.0,131.98,18.64964886]
[1740737519496,0.03,132.0,131.98,180.354]
[1740737519704,0.03,132.0,131.98,43.854]
[1740737520005,6.5122,132.0,131.98,43.854]
[1740737520196,1.79916157,131.99,131.94,27.6529]
[1740737520374,1.657,131.99,131.94,27.6529]
[1740737521185,20.0,131.97,131.94,27.6529]
[1740737521490,20.0,131.97,131.92,164.1529]
[1740737521697,20.0,131.97,131.92,27.6529]
[1740737522408,20.0,131.95,131.92,27.6529]
[1740737522579,6.5482,131.94,131.92,23.8177]
[1740737522903,6.5482,131.94,131.9,23.8807]
[1740737523701,6.5482,131.94,131.9,160.3807]
[1740737524080,6.5299,131.97,131.9,160.3807]
[1740737524805,6.5299,131.97,131.91,18.64964886]
[1740737525280,0.03,132.0,131.92,0.14216157]
[1740737525281,6.0367,132.0,131.92,0.14216157]
[1740737525482,6.0367,132.0,131.94,18.64964886]
[1740737525682,6.0367,132.0,131.94,178.96734886]
[1740737526299,6.0367,132.0,131.94,186.54644886]
[1740737526300,0.03,132.0,131.94,186.54644886]
[1740737526693,0.03,132.0,131.94,178.96734886]
[1740737526910,20.03,132.0,131.94,160.3177]
[1740737527080,20.03,132.0,131.94,23.8177]
[1740737527280,20.0,131.95,131.92,23.8177]
[1740737527513,20.0,131.95,131.9,23.8807]
[1740737528501,1.6075,131.96,131.9,23.8807]
[1740737528698,1.6075,131.96,131.9,160.3807]
[1740737529585,20.0,131.95,131.9,160.3807]
[1740737530106,28.18216157,131.94,131.9,0.063]
[1740737530501,28.04,131.94,131.9,0.063]
[1740737530807,28.07,131.94,131.9,0.063]
[1740737531407,0.03,131.94,131.9,160.3807]
[1740737536682,0.03,131.94,131.9,167.9619]
[1740737536885,0.03,131.94,131.91,18.64964886]
[1740737537913,0.03,131.94,131.91,26.23024886]
[1740737538099,0.03,131.94,131.91,186.54794886]
[1740737539321,0.03,131.94,131.93,18.64964886]
[1740737540822,0.03,131.94,131.91,160.3177]
[1740737542219,0.03,131.94,131.91,23.8177]
[1740737543893,0.03,131.94,131.91,160.3177]
[1740737544303,0.03,131.94,131.92,18.64964886]
[1740737544513,0.03,131.94,131.92,178.96734886]
[1740737544813,0.03,131.94,131.93,9.31281272]
[1740737545709,0.03,131.94,131.93,188.28016158]
[1740737546030,0.03,131.94,131.93,186.68921043]
[1740737549028,0.03,131.94,131.93,188.68921043]
[1740737550332,0.03,131.94,131.93,186.68921043]
[1740737550529,0.03,131.94,131.93,160.3177]
[1740737550713,0.03,131.94,131.93,23.8177]
[1740737553638,0.03,131.94,131.93,180.70074093]
[1740737553826,0.03,131.94,131.93,179.10951043]
[1740737554729,0.03,131.94,131.93,188.68921043]
[1740737555409,0.03,131.95,131.94,20.79181043]
[1740737555610,0.03,131.95,131.94,20.24018717]
[1740737556621,0.03,131.95,131.94,27.81938717]
[1740737557316,0.03,131.95,131.94,26.22884886]
[1740737557737,0.03,131.95,131.94,27.81965782]
[1740737557925,0.03,131.95,131.94,29.96181939]
[1740737558822,0.03,131.95,131.94,190.27951939]
[1740737559020,0.03,131.95,131.94,186.54654886]
[1740737559236,0.03,131.95,131.94,178.96734886]
[1740737560045,0.03,131.95,131.94,188.68871043]
[1740737560335,0.03,131.95,131.94,190.27721043]
[1740737560533,0.03,131.95,131.94,192.27721043]
[1740737561935,0.03,132.0,131.96,18.64964886]
[1740737562114,0.03,132.0,131.97,8.02]
[1740737562729,0.03,132.0,131.97,168.3077]
[1740737564545,0.03,132.0,131.97,23.7877]
[1740737567345,0.03,132.0,131.97,160.2877]
[1740737569942,0.03,132.0,131.97,167.865]
[1740737570241,0.03,132.0,131.99,18.64964886]
[1740737570548,0.03,132.0,131.99,178.93734886]
[1740737571130,0.03,132.0,131.99,186.51364886]
[1740737571628,0.03,132.0,131.99,178.93734886]
[1740737572430,0.03,132.0,131.99,209.47581043]
[1740737573231,0.03,132.0,131.99,179.07951043]
[1740737573426,0.03,132.0,131.99,178.93734886]
[1740737576062,0.03,132.0,131.99,186.65581043]
[1740737579440,0.03,132.01,132.0,41.61181043]
[1740737579642,0.03,132.01,132.0,43.20165051]
[1740737580652,0.03,132.01,132.0,50.77735051]
[1740737581245,0.03,132.01,132.0,50.63518894]
[1740737581429,0.03,132.01,132.0,50.77735051]
[1740737581857,0.03,132.03,132.02,26.36641043]
[1740737582042,0.03,132.03,132.02,188.21374223]
[1740737582246,0.03,132.03,132.02,186.62411043]
[1740737582653,0.03,132.03,132.02,186.48194886]
[1740737583165,0.03,132.03,132.02,209.30194886]
[1740737585178,0.03,132.03,132.02,178.90734886]
[1740737585542,0.03,132.03,132.02,160.2577]
[1740737587569,0.03,132.03,132.02,23.7577]
[1740737589849,0.03,132.03,132.02,178.90734886]
[1740737590969,0.03,132.03,132.02,160.2577]
[1740737593484,0.03,132.03,132.02,23.7577]
[1740737596747,0.03,132.03,132.02,42.40734886]
[1740737597445,0.03,132.03,132.02,178.90734886]
[1740737599573,0.03,132.03,132.02,160.2577]
[1740737600277,0.03,132.03,132.02,23.7577]
[1740737603268,0.03,132.03,132.02,160.2577]
[1740737613075,0.03,132.03,132.02,178.90734886]
[1740737613572,0.03,132.03,132.02,160.2577]
[1740737614087,0.03,132.03,132.02,23.7577]
[1740737618069,0.03,132.03,132.02,160.2577]
[1740737618769,0.03,132.03,132.02,178.90734886]
[1740737621085,0.03,132.03,132.02,160.2577]
[1740737622594,0.03,132.03,132.02,178.90734886]
[1740737623874,0.03,132.03,132.02,160.2577]
[1740737624291,0.03,132.03,132.02,178.90734886]
[1740737624594,0.03,132.03,132.02,188.10414886]
[1740737625996,0.03,132.03,132.02,188.24631043]
[1740737629475,0.03,132.03,132.02,192.05448479]
[1740737635703,0.03,132.03,132.02,188.24631043]
[1740737635996,0.03,132.03,132.02,180.52954886]
[1740737637484,0.03,132.03,132.02,188.10414886]
[1740737638000,0.03,132.03,132.02,160.2577]
[1740737642606,0.03,132.03,132.02,23.7577]
[1740737643714,20.03,132.03,132.02,7.1504]
[1740737643895,0.14216157,132.02,132.0,0.0001]
[1740737644094,7.7799,132.01,132.0,0.0001]
[1740737648108,0.03,132.03,132.0,0.0001]
[1740737649588,0.03,132.03,132.0,136.5001]
[1740737651022,0.03,132.03,132.01,18.64964886]
[1740737651194,0.03,132.03,132.01,138.09000833]
[1740737651507,0.03,132.03,132.01,136.5001]
[1740737652306,0.03,132.03,132.02,18.64964886]
[1740737652516,0.03,132.03,132.02,20.23991008]
[1740737652915,0.03,132.03,132.02,18.64964886]
[1740737653603,0.03,132.03,132.02,136.5001]
[1740737654493,0.03,132.03,132.02,162.72434886]
[1740737654891,0.03,132.03,132.02,155.14974886]
[1740737655123,0.03,132.03,132.02,162.72434886]
[1740737656125,0.03,132.03,132.02,162.86651043]
[1740737656697,0.03,132.04,132.03,18.79191043]
[1740737657022,0.03,132.04,132.03,28.38132689]
[1740737657620,0.03,132.04,132.03,35.95532689]
[1740737659710,0.03,132.04,132.03,172.45532689]
[1740737660015,0.03,132.04,132.03,170.86591043]
[1740737660813,0.03,132.04,132.03,178.59414932]
[1740737661627,0.03,132.04,132.03,174.59414932]
[1740737661930,0.03,132.04,132.03,163.14974886]
[1740737662102,0.03,132.04,132.03,155.14974886]
[1740737662303,0.03,132.04,132.03,155.21274886]
[1740737662727,0.03,132.04,132.03,136.5631]
[1740737663712,0.03,132.04,132.03,0.0631]
[1740737665026,0.03,132.04,132.03,0.063]
[1740737667529,0.17216157,132.04,132.03,0.063]
[1740737667831,20.17216157,132.04,132.03,0.0001]
[1740737668033,20.03,132.04,132.03,0.0001]
[1740737668324,20.17216157,132.04,132.03,0.0001]
[1740737668517,30.25386157,132.04,132.03,0.0001]
[1740737670245,28.25386157,132.04,132.03,0.0001]
[1740737671807,30.25386157,132.04,132.03,0.0001]
[1740737672343,28.25386157,132.04,132.03,0.0001]
[1740737672639,30.25386157,132.04,132.03,0.0001]
[1740737673413,28.25386157,132.04,132.03,0.0001]
[1740737674521,20.03,132.04,132.03,0.0001]
[1740737677324,20.17216157,132.04,132.03,0.0001]
[1740737677626,22.17216157,132.04,132.03,0.0001]
[1740737678238,20.17216157,132.04,132.03,0.0001]
[1740737679242,22.17216157,132.04,132.03,0.0001]
[1740737680825,42.82181043,132.04,132.03,0.0001]
[1740737681023,44.39701043,132.04,132.03,0.0001]
[1740737681243,51.01891043,132.04,132.03,0.0001]
[1740737682643,0.14216157,131.99,131.93,136.5001]
[1740737682940,22.14216157,131.99,131.93,0.0001]
[1740737685047,20.14216157,131.99,131.93,0.0001]
[1740737685340,22.14216157,131.99,131.93,0.0001]
[1740737685718,20.14216157,131.99,131.93,0.0001]
[1740737686749,22.14216157,131.99,131.93,0.0001]
[1740737687731,20.14216157,131.99,131.93,0.0001]
[1740737688330,20.0,131.99,131.93,0.0001]
[1740737688936,0.14216157,131.98,131.93,0.0001]
[1740737690958,20.0,131.95,131.91,0.063]
[1740737691269,20.0,131.95,131.91,0.0631]
[1740737704456,19.80698983,131.95,131.91,0.0631]
[1740737705045,0.14216157,131.97,131.91,0.0631]
[1740737705244,2.14216157,131.97,131.91,0.0631]
[1740737705661,2.14216157,131.94,131.91,0.0631]
[1740737705857,2.14216157,131.92,131.91,0.0001]
[1740737706163,2.0,131.91,131.9,0.0001]
[1740737706353,0.14216157,131.92,131.9,0.0001]
[1740737706671,22.14216157,131.91,131.9,0.0001]
[1740737706964,20.14216157,131.9,131.89,0.0001]
[1740737708257,20.14216157,131.9,131.87,0.0631]
[1740737708567,22.0,131.89,131.85,0.0001]
[1740737709446,22.14216157,131.88,131.85,0.0001]
[1740737709759,20.0,131.87,131.85,0.0001]
[1740737710060,22.0,131.87,131.82,1.6558]
[1740737710265,20.0,131.87,131.82,1.6558]
[1740737713156,7.98,131.9,131.82,138.1558]
[1740737716450,0.14216157,131.89,131.82,138.1558]
[1740737716775,20.0,131.87,131.82,138.1558]
[1740737717350,9.98,131.9,131.82,138.1558]
[1740737717351,7.98,131.9,131.82,138.1558]
[1740737717958,9.98,131.9,131.82,138.1558]
[1740737718266,20.0,131.87,131.82,138.1558]
[1740737719442,20.14216157,131.86,131.82,138.1558]
[1740737721451,20.14216157,131.86,131.82,136.5001]
[1740737722048,20.14216157,131.86,131.82,0.0001]
[1740737722372,20.14216157,131.86,131.81,0.063]
[1740737722373,20.0,131.85,131.81,0.063]
[1740737722550,20.0,131.85,131.81,0.0631]
[1740737722752,20.14216157,131.84,131.81,0.0631]
[1740737725453,20.0,131.84,131.81,0.0631]
[1740737726361,7.98,131.85,131.81,0.0631]
[1740737726879,20.0,131.84,131.81,0.0631]